[Event "Late-Titled-Tuesday-Blitz-June-18-2024"]
[Site "Chess.com"]
[Date "2024.06.18"]
[Round "11"]
[White "ChEsper99"]
[Black "Roedor"]
[Result "1/2-1/2"]
[WhiteElo "2254"]
[BlackElo "2428"]
[TimeControl "180+1"]
[EndTime "16:08:27 PDT"]
[Termination "Game drawn - insufficient material"]

1. e4 {[%clk 0:02:58.8]} 1... e5 {[%clk 0:02:59.6]} 2. Nf3 {[%clk 0:02:58.6]}
2... Nc6 {[%clk 0:02:58.9]} 3. Nc3 {[%clk 0:02:59]} 3... Nf6 {[%clk 0:02:58.4]}
4. d4 {[%clk 0:02:59.4]} 4... exd4 {[%clk 0:02:59.3]} 5. Nxd4 {[%clk 0:02:59.9]}
5... Bb4 {[%clk 0:02:59.5]} 6. Nxc6 {[%clk 0:02:56.9]} 6... bxc6 {[%clk
0:03:00.4]} 7. Bd3 {[%clk 0:02:57.1]} 7... d5 {[%clk 0:03:00.6]} 8. exd5 {[%clk
0:02:55.3]} 8... cxd5 {[%clk 0:03:01.5]} 9. O-O {[%clk 0:02:55.6]} 9... O-O
{[%clk 0:03:01.4]} 10. h3 {[%clk 0:02:54.1]} 10... c6 {[%clk 0:03:01.5]} 11. Qf3
{[%clk 0:02:54.2]} 11... Re8 {[%clk 0:03:01.5]} 12. Bg5 {[%clk 0:02:54.8]} 12...
Be6 {[%clk 0:03:01.1]} 13. Ne2 {[%clk 0:02:53.3]} 13... Bd6 {[%clk 0:02:58.9]}
14. Nf4 {[%clk 0:02:52.5]} 14... Rb8 {[%clk 0:02:58.3]} 15. b3 {[%clk
0:02:48.1]} 15... h6 {[%clk 0:02:55.7]} 16. Nxe6 {[%clk 0:02:38.7]} 16... Rxe6
{[%clk 0:02:52.4]} 17. Bf4 {[%clk 0:02:27.4]} 17... Bxf4 {[%clk 0:02:48.8]} 18.
Qxf4 {[%clk 0:02:28.3]} 18... Qd6 {[%clk 0:02:49.3]} 19. Qxd6 {[%clk 0:02:26.1]}
19... Rxd6 {[%clk 0:02:50.2]} 20. Rfe1 {[%clk 0:02:26.5]} 20... Kf8 {[%clk
0:02:49.9]} 21. Re2 {[%clk 0:02:25.3]} 21... Re8 {[%clk 0:02:47.7]} 22. Rae1
{[%clk 0:02:24.6]} 22... Rxe2 {[%clk 0:02:47]} 23. Rxe2 {[%clk 0:02:25.3]} 23...
Nd7 {[%clk 0:02:42.1]} 24. c3 {[%clk 0:02:15.9]} 24... Nc5 {[%clk 0:02:38.1]}
25. Bc2 {[%clk 0:02:16]} 25... g6 {[%clk 0:02:32.9]} 26. b4 {[%clk 0:02:11]}
26... Ne6 {[%clk 0:02:32.2]} 27. Bb3 {[%clk 0:02:06.9]} 27... Nf4 {[%clk
0:02:21.7]} 28. Re1 {[%clk 0:01:35.5]} 28... g5 {[%clk 0:02:16.1]} 29. Kh2
{[%clk 0:01:29]} 29... Rf6 {[%clk 0:02:12.8]} 30. Bc2 {[%clk 0:01:22.8]} 30...
Ne6 {[%clk 0:02:02.6]} 31. Kg1 {[%clk 0:01:18.1]} 31... Ke7 {[%clk 0:02:02.5]}
32. g3 {[%clk 0:01:15.3]} 32... Kd6 {[%clk 0:02:01.8]} 33. Kg2 {[%clk 0:01:13]}
33... h5 {[%clk 0:01:59.9]} 34. Rb1 {[%clk 0:01:05]} 34... c5 {[%clk 0:01:26.9]}
35. b5 {[%clk 0:00:51.4]} 35... d4 {[%clk 0:01:26.3]} 36. cxd4 {[%clk
0:00:41.9]} 36... Nxd4 {[%clk 0:01:22.3]} 37. Bd1 {[%clk 0:00:42.5]} 37... h4
{[%clk 0:01:21.3]} 38. a4 {[%clk 0:00:40.8]} 38... Re6 {[%clk 0:01:17.7]} 39. a5
{[%clk 0:00:26.9]} 39... Kc7 {[%clk 0:01:11.1]} 40. Bh5 {[%clk 0:00:14.4]} 40...
f6 {[%clk 0:01:06.2]} 41. Rc1 {[%clk 0:00:11.5]} 41... Re5 {[%clk 0:01:01.6]}
42. Rb1 {[%clk 0:00:07.2]} 42... hxg3 {[%clk 0:00:58.1]} 43. fxg3 {[%clk
0:00:03]} 43... Re3 {[%clk 0:00:57]} 44. b6+ {[%clk 0:00:03.3]} 44... axb6
{[%clk 0:00:56.7]} 45. axb6+ {[%clk 0:00:04.2]} 45... Kb8 {[%clk 0:00:57.1]} 46.
Bf7 {[%clk 0:00:03.8]} 46... Re2+ {[%clk 0:00:48.8]} 47. Kf1 {[%clk 0:00:03.6]}
47... Rh2 {[%clk 0:00:48.8]} 48. Bd5 {[%clk 0:00:03.1]} 48... Nc2 {[%clk
0:00:37.3]} 49. Kg1 {[%clk 0:00:02.6]} 49... Rd2 {[%clk 0:00:36.8]} 50. Bg2
{[%clk 0:00:01.9]} 50... c4 {[%clk 0:00:28.6]} 51. Rb2 {[%clk 0:00:02.1]} 51...
Rd1+ {[%clk 0:00:04.7]} 52. Kh2 {[%clk 0:00:02.1]} 52... Rd2 {[%clk 0:00:02.2]}
53. Ra2 {[%clk 0:00:02.3]} 53... Rxg2+ {[%clk 0:00:01.1]} 54. Kxg2 {[%clk
0:00:02.3]} 54... Nb4 {[%clk 0:00:01.8]} 55. Ra4 {[%clk 0:00:02.5]} 55... Nd5
{[%clk 0:00:01.7]} 56. Rxc4 {[%clk 0:00:02.9]} 56... Nxb6 {[%clk 0:00:02.2]} 57.
Rb4 {[%clk 0:00:02.9]} 57... Kc7 {[%clk 0:00:01.9]} 58. Kf3 {[%clk 0:00:03.1]}
58... Nd5 {[%clk 0:00:01.9]} 59. Rd4 {[%clk 0:00:02.9]} 59... Kd6 {[%clk
0:00:02.1]} 60. h4 {[%clk 0:00:02.7]} 60... gxh4 {[%clk 0:00:01.7]} 61. gxh4
{[%clk 0:00:03.6]} 61... Ke5 {[%clk 0:00:02.5]} 62. Re4+ {[%clk 0:00:03.5]}
62... Kf5 {[%clk 0:00:02.6]} 63. Ra4 {[%clk 0:00:04.1]} 63... Ne7 {[%clk
0:00:02.6]} 64. Ra5+ {[%clk 0:00:04.3]} 64... Kg6 {[%clk 0:00:02.7]} 65. Kg4
{[%clk 0:00:04.9]} 65... Ng8 {[%clk 0:00:02.7]} 66. h5+ {[%clk 0:00:05.2]} 66...
Kh6 {[%clk 0:00:02.9]} 67. Ra8 {[%clk 0:00:04.4]} 67... Kg7 {[%clk 0:00:02.9]}
68. Kf5 {[%clk 0:00:03.7]} 68... Nh6+ {[%clk 0:00:03.3]} 69. Ke6 {[%clk
0:00:03.6]} 69... Ng4 {[%clk 0:00:03.6]} 70. Ra4 {[%clk 0:00:01.7]} 70... Nh6
{[%clk 0:00:02.7]} 71. Rh4 {[%clk 0:00:01.5]} 71... Ng8 {[%clk 0:00:01.7]} 72.
Rg4+ {[%clk 0:00:01.4]} 72... Kh7 {[%clk 0:00:01.6]} 73. Kf7 {[%clk 0:00:01.1]}
73... Nh6+ {[%clk 0:00:02]} 74. Kxf6 {[%clk 0:00:01.1]} 74... Nxg4+ {[%clk
0:00:02.9]} 75. Kg5 {[%clk 0:00:01.2]} 75... Nf2 {[%clk 0:00:03.8]} 76. Kh4
{[%clk 0:00:02]} 76... Ne4 {[%clk 0:00:03.6]} 77. h6 {[%clk 0:00:02.9]} 77...
Nf6 {[%clk 0:00:04.4]} 78. Kh3 {[%clk 0:00:03.8]} 78... Ng8 {[%clk 0:00:04.9]}
79. Kh2 {[%clk 0:00:04.7]} 79... Nxh6 {[%clk 0:00:05.8]} 1/2-1/2

[Event "Late-Titled-Tuesday-Blitz-June-18-2024"]
[Site "Chess.com"]
[Date "2024.06.18"]
[Round "11"]
[White "DenLaz"]
[Black "Bauman_Guy"]
[Result "1-0"]
[WhiteElo "3126"]
[BlackElo "2942"]
[TimeControl "180+1"]
[EndTime "16:09:00 PDT"]
[Termination "DenLaz won by resignation"]

1. d4 {[%clk 0:03:00.9]} 1... Nf6 {[%clk 0:02:59.9]} 2. c4 {[%clk 0:03:01.2]}
2... e6 {[%clk 0:03:00.1]} 3. Nf3 {[%clk 0:03:01.6]} 3... d5 {[%clk 0:02:59.8]}
4. g3 {[%clk 0:03:02.2]} 4... dxc4 {[%clk 0:02:59.5]} 5. Bg2 {[%clk 0:03:02.5]}
5... Bb4+ {[%clk 0:02:59.8]} 6. Bd2 {[%clk 0:03:02.4]} 6... c5 {[%clk 0:03:00]}
7. Bxb4 {[%clk 0:02:54.5]} 7... cxb4 {[%clk 0:03:00.9]} 8. Ne5 {[%clk
0:02:54.4]} 8... O-O {[%clk 0:03:00.3]} 9. O-O {[%clk 0:02:54.2]} 9... Nc6
{[%clk 0:02:59.8]} 10. Bxc6 {[%clk 0:02:54]} 10... bxc6 {[%clk 0:02:59.8]} 11.
a3 {[%clk 0:02:54.7]} 11... bxa3 {[%clk 0:03:00.1]} 12. Nxa3 {[%clk 0:02:54.5]}
12... Ba6 {[%clk 0:03:00.3]} 13. Naxc4 {[%clk 0:02:53.2]} 13... Bxc4 {[%clk
0:02:59.8]} 14. Nxc4 {[%clk 0:02:54.1]} 14... Qd5 {[%clk 0:02:54.2]} 15. Ne5
{[%clk 0:02:52.7]} 15... c5 {[%clk 0:02:50.3]} 16. Ra5 {[%clk 0:02:53]} 16...
Qb7 {[%clk 0:02:35]} 17. dxc5 {[%clk 0:02:36.2]} 17... Qxb2 {[%clk 0:02:30.3]}
18. Nd3 {[%clk 0:02:34.2]} 18... Qd4 {[%clk 0:01:58.6]} 19. Qa1 {[%clk
0:02:31.6]} 19... Qe4 {[%clk 0:01:56.9]} 20. Re1 {[%clk 0:02:30.8]} 20... Nd5
{[%clk 0:01:53]} 21. Ra4 {[%clk 0:02:21.6]} 21... Qg6 {[%clk 0:01:39.3]} 22.
Rxa7 {[%clk 0:02:19.8]} 22... Rxa7 {[%clk 0:01:38.5]} 23. Qxa7 {[%clk
0:02:20.7]} 23... h5 {[%clk 0:01:39.1]} 24. Qa4 {[%clk 0:02:17]} 24... Rb8
{[%clk 0:01:36.9]} 25. c6 {[%clk 0:02:14.9]} 25... Qf6 {[%clk 0:01:32.3]} 26.
Qc4 {[%clk 0:02:11.5]} 26... Rc8 {[%clk 0:01:23.7]} 27. Rc1 {[%clk 0:02:02.4]}
27... g5 {[%clk 0:01:08.6]} 28. Nb4 {[%clk 0:01:58.9]} 28... Ne7 {[%clk
0:00:59.4]} 29. c7 {[%clk 0:01:45.1]} 29... h4 {[%clk 0:00:58.5]} 30. Qc3 {[%clk
0:00:58.1]} 30... Qxc3 {[%clk 0:00:40.3]} 31. Rxc3 {[%clk 0:00:59]} 31... Kf8
{[%clk 0:00:40.7]} 32. gxh4 {[%clk 0:00:57.4]} 32... gxh4 {[%clk 0:00:40.4]} 33.
Kg2 {[%clk 0:00:57.8]} 33... Ke8 {[%clk 0:00:31]} 34. Kh3 {[%clk 0:00:57.5]}
34... Nf5 {[%clk 0:00:28]} 35. Na6 {[%clk 0:00:55.3]} 35... Kd7 {[%clk
0:00:25.1]} 36. Rd3+ {[%clk 0:00:54.2]} 36... Kc6 {[%clk 0:00:25.2]} 37. Rd8
{[%clk 0:00:51.5]} 37... Kb7 {[%clk 0:00:25.1]} 38. e4 {[%clk 0:00:22.7]} 38...
Ne7 {[%clk 0:00:23.7]} 39. Nc5+ {[%clk 0:00:22.5]} 39... Kxc7 {[%clk 0:00:23.2]}
40. Rd7+ {[%clk 0:00:18]} 40... Kc6 {[%clk 0:00:23.7]} 41. Rxe7 {[%clk
0:00:17.8]} 41... Kxc5 {[%clk 0:00:24.2]} 42. Rxf7 {[%clk 0:00:18.4]} 42... Kd4
{[%clk 0:00:23.4]} 43. f3 {[%clk 0:00:17.5]} 43... Rc2 {[%clk 0:00:19.7]} 44.
Kxh4 {[%clk 0:00:08.7]} 44... Rxh2+ {[%clk 0:00:19.3]} 45. Kg3 {[%clk
0:00:09.3]} 45... Rh1 {[%clk 0:00:16.9]} 46. Rf6 {[%clk 0:00:06.9]} 46... Ke5
{[%clk 0:00:15.3]} 47. Rf8 {[%clk 0:00:07.5]} 47... Rg1+ {[%clk 0:00:15.6]} 48.
Kf2 {[%clk 0:00:07.7]} 48... Ra1 {[%clk 0:00:16.2]} 49. Rh8 {[%clk 0:00:07]}
49... Rb1 {[%clk 0:00:15.4]} 50. Rh5+ {[%clk 0:00:05.9]} 50... Kf4 {[%clk
0:00:15.5]} 51. Rh4+ {[%clk 0:00:06.5]} 51... Ke5 {[%clk 0:00:16]} 52. Rg4
{[%clk 0:00:07.2]} 52... Ra1 {[%clk 0:00:16]} 53. Rg1 {[%clk 0:00:04.7]} 53...
Ra2+ {[%clk 0:00:12.3]} 54. Kg3 {[%clk 0:00:05]} 54... Ra8 {[%clk 0:00:13]} 55.
Rh1 {[%clk 0:00:03.2]} 55... Rg8+ {[%clk 0:00:13.2]} 56. Kf2 {[%clk 0:00:03.8]}
56... Ra8 {[%clk 0:00:14.1]} 57. Rh4 {[%clk 0:00:02.4]} 57... Rb8 {[%clk
0:00:11.8]} 58. Kg3 {[%clk 0:00:02.4]} 58... Rg8+ {[%clk 0:00:06.6]} 59. Rg4
{[%clk 0:00:03]} 59... Rh8 {[%clk 0:00:06.7]} 60. Rg5+ {[%clk 0:00:03]} 60...
Kf6 {[%clk 0:00:06.8]} 61. Ra5 {[%clk 0:00:02.6]} 61... Rh1 {[%clk 0:00:06.2]}
62. Kf4 {[%clk 0:00:03.1]} 62... Rh4+ {[%clk 0:00:06.3]} 63. Ke3 {[%clk
0:00:03.7]} 63... Rh1 {[%clk 0:00:07.2]} 64. Ra8 {[%clk 0:00:03.7]} 64... Rh2
{[%clk 0:00:05.7]} 65. Kf4 {[%clk 0:00:03.7]} 65... Rh4+ {[%clk 0:00:05.7]} 66.
Kg3 {[%clk 0:00:04.3]} 66... Rh1 {[%clk 0:00:06.6]} 67. f4 {[%clk 0:00:04.7]}
67... Re1 {[%clk 0:00:06.5]} 68. Kf3 {[%clk 0:00:04.7]} 68... Rf1+ {[%clk
0:00:06.8]} 69. Kg3 {[%clk 0:00:04.6]} 69... Re1 {[%clk 0:00:07]} 70. e5+ {[%clk
0:00:05.2]} 70... Kf5 {[%clk 0:00:06.8]} 71. Rf8+ {[%clk 0:00:05.3]} 71... Ke4
{[%clk 0:00:07.1]} 72. Rf6 {[%clk 0:00:06]} 72... Rf1 {[%clk 0:00:05.2]} 73. Kg4
{[%clk 0:00:05.9]} 73... Kd5 {[%clk 0:00:05.5]} 74. Kg5 {[%clk 0:00:06.1]} 74...
Rg1+ {[%clk 0:00:05]} 75. Kh6 {[%clk 0:00:06.7]} 75... Ke4 {[%clk 0:00:05.1]}
76. Rg6 {[%clk 0:00:04.8]} 76... Rh1+ {[%clk 0:00:04]} 77. Kg7 {[%clk
0:00:05.1]} 77... Kxf4 {[%clk 0:00:03.7]} 78. Kf6 {[%clk 0:00:05.7]} 78... Ra1
{[%clk 0:00:03.2]} 79. Rh6 {[%clk 0:00:04.4]} 79... Ra6 {[%clk 0:00:02.5]} 80.
Rh4+ {[%clk 0:00:04.7]} 80... Ke3 {[%clk 0:00:03]} 81. Rc4 {[%clk 0:00:04.9]}
81... Kf3 {[%clk 0:00:03.5]} 82. Rd4 {[%clk 0:00:04.9]} 82... Ke3 {[%clk
0:00:03.4]} 83. Rd6 {[%clk 0:00:05.5]} 83... Ra8 {[%clk 0:00:04]} 84. Rxe6
{[%clk 0:00:04.6]} 84... Ke4 {[%clk 0:00:04.9]} 85. Rb6 {[%clk 0:00:05.2]} 85...
Rf8+ {[%clk 0:00:03.6]} 86. Ke7 {[%clk 0:00:05.9]} 86... Rh8 {[%clk 0:00:03.1]}
87. e6 {[%clk 0:00:06.6]} 87... Rh7+ {[%clk 0:00:03.6]} 88. Kd6 {[%clk
0:00:06.8]} 88... Rh6 {[%clk 0:00:03.3]} 89. Kd7 {[%clk 0:00:06.5]} 89... Kd5
{[%clk 0:00:02.6]} 90. Rb5+ {[%clk 0:00:06.9]} 90... Kc4 {[%clk 0:00:02.7]} 91.
Rg5 {[%clk 0:00:07.6]} 91... Rh7+ {[%clk 0:00:02]} 92. e7 {[%clk 0:00:08.1]}
92... Kd4 {[%clk 0:00:02.9]} 93. Kd8 {[%clk 0:00:08.4]} 1-0